[Event "Early-Titled-Tuesday-Blitz-February-06-2024"]
[Site "Chess.com"]
[Date "2024.02.06"]
[Round "9"]
[White "hakanazeri2"]
[Black "Bodnar_Mykola"]
[Result "0-1"]
[WhiteElo "2628"]
[BlackElo "2510"]
[TimeControl "180+1"]
[EndTime "9:44:05 PST"]
[Termination "Bodnar_Mykola won by resignation"]

1. c4 {[%clk 0:02:57]} 1... Nf6 {[%clk 0:02:55.1]} 2. Nf3 {[%clk 0:02:51.9]}
2... e6 {[%clk 0:02:55.2]} 3. g3 {[%clk 0:02:52.1]} 3... b6 {[%clk 0:02:55.1]}
4. Bg2 {[%clk 0:02:53]} 4... Bb7 {[%clk 0:02:55.6]} 5. O-O {[%clk 0:02:53.6]}
5... Be7 {[%clk 0:02:55.9]} 6. Nc3 {[%clk 0:02:50.7]} 6... O-O {[%clk
0:02:55.8]} 7. Re1 {[%clk 0:02:50.2]} 7... d5 {[%clk 0:02:56.1]} 8. cxd5 {[%clk
0:02:48.6]} 8... Nxd5 {[%clk 0:02:55]} 9. e4 {[%clk 0:02:41.3]} 9... Nxc3 {[%clk
0:02:52.8]} 10. bxc3 {[%clk 0:02:40.9]} 10... c5 {[%clk 0:02:52.7]} 11. d4
{[%clk 0:02:39.5]} 11... cxd4 {[%clk 0:02:50.7]} 12. cxd4 {[%clk 0:02:37.3]}
12... Nc6 {[%clk 0:02:49.9]} 13. Bb2 {[%clk 0:02:36.3]} 13... Bf6 {[%clk
0:02:41.2]} 14. Rc1 {[%clk 0:02:20.6]} 14... Rc8 {[%clk 0:02:39.4]} 15. e5
{[%clk 0:01:43.8]} 15... Be7 {[%clk 0:02:38.4]} 16. d5 {[%clk 0:01:43.9]} 16...
exd5 {[%clk 0:02:36.8]} 17. Nd4 {[%clk 0:01:39.5]} 17... Nxd4 {[%clk 0:02:32.7]}
18. Qxd4 {[%clk 0:01:38.7]} 18... Rxc1 {[%clk 0:02:31]} 19. Rxc1 {[%clk
0:01:36]} 19... Bc5 {[%clk 0:02:31.4]} 20. Qg4 {[%clk 0:01:32.7]} 20... Qe7
{[%clk 0:02:22.6]} 21. Bf1 {[%clk 0:01:07.8]} 21... Rd8 {[%clk 0:02:19.8]} 22.
Bd3 {[%clk 0:01:05]} 22... d4 {[%clk 0:02:18.7]} 23. Re1 {[%clk 0:00:59.4]}
23... Qe6 {[%clk 0:02:14.6]} 24. Qh4 {[%clk 0:00:57.2]} 24... Rd5 {[%clk
0:01:57.8]} 25. Qxh7+ {[%clk 0:00:30.6]} 25... Kf8 {[%clk 0:01:57.3]} 26. Qh8+
{[%clk 0:00:30.7]} 26... Ke7 {[%clk 0:01:57]} 27. Qxg7 {[%clk 0:00:31]} 27...
Rd8 {[%clk 0:01:42.5]} 28. Bc1 {[%clk 0:00:27.3]} 28... Kd7 {[%clk 0:01:31.2]}
29. Bg5 {[%clk 0:00:20.6]} 29... Re8 {[%clk 0:01:31.1]} 30. f4 {[%clk
0:00:15.8]} 30... Kc8 {[%clk 0:01:24.2]} 31. Qf6 {[%clk 0:00:11.4]} 31... Qxa2
{[%clk 0:01:21.5]} 32. Qf5+ {[%clk 0:00:10.2]} 32... Kb8 {[%clk 0:01:20.5]} 33.
Re2 {[%clk 0:00:06.8]} 33... Qa1+ {[%clk 0:01:15.7]} 34. Kf2 {[%clk 0:00:07.4]}
34... Qh1 {[%clk 0:01:14.6]} 35. Qxf7 {[%clk 0:00:07.7]} 35... Qg2+ {[%clk
0:01:06.9]} 36. Ke1 {[%clk 0:00:06.2]} 36... Bb4+ {[%clk 0:01:07.3]} 37. Kd1
{[%clk 0:00:04.6]} 37... Qf1+ {[%clk 0:01:07.5]} 38. Kc2 {[%clk 0:00:04.4]}
38... Rc8+ {[%clk 0:01:08.1]} 39. Kb2 {[%clk 0:00:03.8]} 39... Qc1+ {[%clk
0:00:56]} 40. Ka2 {[%clk 0:00:03.8]} 40... Qa3+ {[%clk 0:00:52.9]} 0-1

[Event "Early-Titled-Tuesday-Blitz-February-06-2024"]
[Site "Chess.com"]
[Date "2024.02.06"]
[Round "9"]
[White "yuriydovzik"]
[Black "emeli_chess"]
[Result "0-1"]
[WhiteElo "2205"]
[BlackElo "2406"]
[TimeControl "180+1"]
[EndTime "9:44:07 PST"]
[Termination "emeli_chess won on time"]

1. g3 {[%clk 0:03:00.9]} 1... f5 {[%clk 0:02:56.4]} 2. c4 {[%clk 0:02:52.7]}
2... Nf6 {[%clk 0:02:56.2]} 3. Qc2 {[%clk 0:02:49.2]} 3... d6 {[%clk 0:02:54.7]}
4. Nc3 {[%clk 0:02:43.6]} 4... e5 {[%clk 0:02:53.7]} 5. Bg2 {[%clk 0:02:33.9]}
5... Be7 {[%clk 0:02:52.1]} 6. e3 {[%clk 0:02:24.2]} 6... O-O {[%clk 0:02:50.6]}
7. Nge2 {[%clk 0:02:19.6]} 7... a5 {[%clk 0:02:47.7]} 8. d4 {[%clk 0:02:18.1]}
8... c6 {[%clk 0:02:41.6]} 9. O-O {[%clk 0:02:11.5]} 9... Be6 {[%clk 0:02:38.2]}
10. b3 {[%clk 0:02:08.6]} 10... Na6 {[%clk 0:02:34.4]} 11. a3 {[%clk 0:01:57.9]}
11... Nc7 {[%clk 0:02:21.5]} 12. Bb2 {[%clk 0:01:51.7]} 12... Qe8 {[%clk
0:02:08.4]} 13. Rad1 {[%clk 0:01:45.2]} 13... Qh5 {[%clk 0:02:04.8]} 14. Qb1
{[%clk 0:01:24.3]} 14... Rae8 {[%clk 0:01:42.7]} 15. c5 {[%clk 0:01:15.1]} 15...
dxc5 {[%clk 0:01:31.1]} 16. dxe5 {[%clk 0:01:14.7]} 16... Ng4 {[%clk 0:01:30.7]}
17. h3 {[%clk 0:01:11.2]} 17... Nxe5 {[%clk 0:01:30]} 18. Nf4 {[%clk 0:01:09.3]}
18... Qh6 {[%clk 0:01:22.8]} 19. Nxe6 {[%clk 0:01:04.9]} 19... Nxe6 {[%clk
0:01:16.9]} 20. Ne2 {[%clk 0:01:02.6]} 20... Bf6 {[%clk 0:00:54.7]} 21. Nf4
{[%clk 0:00:54.3]} 21... Ng5 {[%clk 0:00:53.2]} 22. Bxe5 {[%clk 0:00:33.7]}
22... Bxe5 {[%clk 0:00:50.9]} 23. h4 {[%clk 0:00:31.4]} 23... Bxf4 {[%clk
0:00:37.5]} 24. exf4 {[%clk 0:00:25.7]} 24... Ne4 {[%clk 0:00:37.4]} 25. Qc2
{[%clk 0:00:20.4]} 25... Re7 {[%clk 0:00:32.1]} 26. Bxe4 {[%clk 0:00:12.5]}
26... fxe4 {[%clk 0:00:31.5]} 27. Qxc5 {[%clk 0:00:09.9]} 27... Rfe8 {[%clk
0:00:31.6]} 28. Rfe1 {[%clk 0:00:06.7]} 28... Qe6 {[%clk 0:00:29.3]} 29. Qc4
{[%clk 0:00:01.6]} 29... Qxc4 {[%clk 0:00:27.7]} 0-1

[Event "Early-Titled-Tuesday-Blitz-February-06-2024"]
[Site "Chess.com"]
[Date "2024.02.06"]
[Round "9"]
[White "Makswolf200817"]
[Black "Janosik"]
[Result "1/2-1/2"]
[WhiteElo "2723"]
[BlackElo "2857"]
[TimeControl "180+1"]
[EndTime "9:44:09 PST"]
[Termination "Game drawn by repetition"]

1. d4 {[%clk 0:03:00.9]} 1... d5 {[%clk 0:02:49.7]} 2. c4 {[%clk 0:02:57.8]}
2... e6 {[%clk 0:02:50]} 3. Nf3 {[%clk 0:02:57.9]} 3... Nf6 {[%clk 0:02:50.3]}
4. g3 {[%clk 0:02:58.6]} 4... Bb4+ {[%clk 0:02:49.9]} 5. Bd2 {[%clk 0:02:58.8]}
5... Bd6 {[%clk 0:02:50.5]} 6. Bg2 {[%clk 0:02:57.4]} 6... c6 {[%clk 0:02:50.9]}
7. O-O {[%clk 0:02:56.8]} 7... Nbd7 {[%clk 0:02:51.5]} 8. Qc2 {[%clk 0:02:51.4]}
8... O-O {[%clk 0:02:51.7]} 9. Bc3 {[%clk 0:02:39]} 9... Ne4 {[%clk 0:02:41.5]}
10. Nbd2 {[%clk 0:02:37.7]} 10... f5 {[%clk 0:02:38.1]} 11. Ne1 {[%clk
0:02:21.3]} 11... Qf6 {[%clk 0:02:34.8]} 12. Nd3 {[%clk 0:02:14.9]} 12... b6
{[%clk 0:02:24.6]} 13. Nf3 {[%clk 0:01:59.7]} 13... Ba6 {[%clk 0:02:18.3]} 14.
cxd5 {[%clk 0:01:52.5]} 14... exd5 {[%clk 0:02:16.1]} 15. Rfe1 {[%clk
0:01:44.3]} 15... Rfe8 {[%clk 0:02:11.7]} 16. Nde5 {[%clk 0:01:35.1]} 16... Bxe5
{[%clk 0:02:03.6]} 17. Nxe5 {[%clk 0:01:25.7]} 17... Nxe5 {[%clk 0:02:01.2]} 18.
dxe5 {[%clk 0:01:26.6]} 18... Qe7 {[%clk 0:01:50.6]} 19. Rac1 {[%clk 0:01:01.9]}
19... Rad8 {[%clk 0:01:44.7]} 20. f3 {[%clk 0:00:51.4]} 20... Nxc3 {[%clk
0:00:43.9]} 21. Qxc3 {[%clk 0:00:52.3]} 21... Qxe5 {[%clk 0:00:44.3]} 22. Qxc6
{[%clk 0:00:32.9]} 22... Bxe2 {[%clk 0:00:26.3]} 23. Rc2 {[%clk 0:00:26]} 23...
Qd4+ {[%clk 0:00:21.6]} 24. Kh1 {[%clk 0:00:26.4]} 24... Qf2 {[%clk 0:00:18.6]}
25. Rf1 {[%clk 0:00:16.9]} 25... Qd4 {[%clk 0:00:10.2]} 26. Re1 {[%clk
0:00:16.1]} 26... Qf2 {[%clk 0:00:03.7]} 27. Rf1 {[%clk 0:00:16.7]} 27... Qd4
{[%clk 0:00:04]} 28. Re1 {[%clk 0:00:17.1]} 1/2-1/2

[Event "Early-Titled-Tuesday-Blitz-February-06-2024"]
[Site "Chess.com"]
[Date "2024.02.06"]
[Round "9"]
[White "simonachess"]
[Black "ValiantCeleb"]
[Result "1-0"]
[WhiteElo "2320"]
[BlackElo "2216"]
[TimeControl "180+1"]
[EndTime "9:44:10 PST"]
[Termination "simonachess won by checkmate"]

1. d4 {[%clk 0:03:00.9]} 1... Nf6 {[%clk 0:02:58.3]} 2. c4 {[%clk 0:03:01]} 2...
e6 {[%clk 0:02:58.2]} 3. Nc3 {[%clk 0:03:01.3]} 3... Bb4 {[%clk 0:02:57.7]} 4.
Qc2 {[%clk 0:03:01.6]} 4... d5 {[%clk 0:02:57.5]} 5. e3 {[%clk 0:03:02]} 5...
O-O {[%clk 0:02:54.1]} 6. Bd3 {[%clk 0:03:02.2]} 6... dxc4 {[%clk 0:02:50.2]} 7.
Bxc4 {[%clk 0:03:03.1]} 7... c5 {[%clk 0:02:44.7]} 8. a3 {[%clk 0:03:03.1]} 8...
Bxc3+ {[%clk 0:02:43.3]} 9. bxc3 {[%clk 0:03:04]} 9... b6 {[%clk 0:02:37.3]} 10.
Nf3 {[%clk 0:03:03.5]} 10... Bb7 {[%clk 0:02:37.1]} 11. O-O {[%clk 0:03:03.6]}
11... Nbd7 {[%clk 0:02:30]} 12. Rd1 {[%clk 0:03:03.4]} 12... Qc7 {[%clk
0:02:26.6]} 13. Qe2 {[%clk 0:03:03.4]} 13... Rac8 {[%clk 0:02:24]} 14. Bb5
{[%clk 0:03:00]} 14... Rfd8 {[%clk 0:02:08.6]} 15. Bb2 {[%clk 0:02:59.2]} 15...
c4 {[%clk 0:02:03.1]} 16. Ba4 {[%clk 0:02:54.2]} 16... Bd5 {[%clk 0:01:50.4]}
17. Bc2 {[%clk 0:02:53.1]} 17... Qb7 {[%clk 0:01:43.1]} 18. a4 {[%clk
0:02:51.9]} 18... Be4 {[%clk 0:01:26.8]} 19. Ne1 {[%clk 0:02:50.5]} 19... Bxc2
{[%clk 0:01:24.2]} 20. Qxc2 {[%clk 0:02:50.6]} 20... Qe4 {[%clk 0:01:20.1]} 21.
Qxe4 {[%clk 0:02:50.1]} 21... Nxe4 {[%clk 0:01:20.4]} 22. f3 {[%clk 0:02:50.7]}
22... Nd6 {[%clk 0:01:19.3]} 23. e4 {[%clk 0:02:50.8]} 23... e5 {[%clk
0:01:12.2]} 24. Ba3 {[%clk 0:02:46.3]} 24... Nb7 {[%clk 0:01:09.2]} 25. Nc2
{[%clk 0:02:35.4]} 25... f6 {[%clk 0:01:01.8]} 26. Kf2 {[%clk 0:02:34.8]} 26...
Kf7 {[%clk 0:00:53.5]} 27. Ke3 {[%clk 0:02:34.9]} 27... Ke6 {[%clk 0:00:52.5]}
28. g3 {[%clk 0:02:32.1]} 28... g5 {[%clk 0:00:37.7]} 29. h4 {[%clk 0:02:31.8]}
29... gxh4 {[%clk 0:00:37.6]} 30. gxh4 {[%clk 0:02:32.2]} 30... Rg8 {[%clk
0:00:28.7]} 31. Rg1 {[%clk 0:02:32.1]} 31... Rg6 {[%clk 0:00:17.7]} 32. h5
{[%clk 0:02:26.5]} 32... Rg5 {[%clk 0:00:14.8]} 33. Rxg5 {[%clk 0:02:18.5]}
33... fxg5 {[%clk 0:00:15.7]} 34. Nb4 {[%clk 0:01:49.6]} 34... h6 {[%clk
0:00:13.2]} 35. d5+ {[%clk 0:01:46.2]} 35... Kf7 {[%clk 0:00:12.2]} 36. Nc6
{[%clk 0:01:46.7]} 36... a6 {[%clk 0:00:11.3]} 37. Rb1 {[%clk 0:01:46.4]} 37...
Nbc5 {[%clk 0:00:08.3]} 38. Bxc5 {[%clk 0:01:45.2]} 38... Nxc5 {[%clk
0:00:07.7]} 39. Rxb6 {[%clk 0:01:41.7]} 39... Nxa4 {[%clk 0:00:07.5]} 40. Nxe5+
{[%clk 0:01:40.6]} 40... Kf8 {[%clk 0:00:04.6]} 41. Rxa6 {[%clk 0:01:38.4]}
41... Nxc3 {[%clk 0:00:04.8]} 42. Rxh6 {[%clk 0:01:34.6]} 42... Kg7 {[%clk
0:00:04.7]} 43. Rg6+ {[%clk 0:01:34.4]} 43... Kh7 {[%clk 0:00:05]} 44. Rc6
{[%clk 0:01:33.5]} 44... Re8 {[%clk 0:00:03.1]} 45. Nxc4 {[%clk 0:01:29.8]}
45... Nxd5+ {[%clk 0:00:03.1]} 46. Kd4 {[%clk 0:01:30.3]} 46... Nf4 {[%clk
0:00:03.2]} 47. Rc7+ {[%clk 0:01:30]} 47... Kh6 {[%clk 0:00:03.1]} 48. Nd6
{[%clk 0:01:27.5]} 48... Rd8 {[%clk 0:00:02.6]} 49. Ke5 {[%clk 0:01:27.2]} 49...
Nd3+ {[%clk 0:00:02.4]} 50. Ke6 {[%clk 0:01:27.1]} 50... Nf4+ {[%clk 0:00:02.3]}
51. Ke7 {[%clk 0:01:26.6]} 51... Rg8 {[%clk 0:00:01.8]} 52. Nf5+ {[%clk
0:01:23.7]} 52... Kxh5 {[%clk 0:00:02]} 53. Kf6 {[%clk 0:01:23.3]} 53... g4
{[%clk 0:00:01]} 54. Rh7# {[%clk 0:01:22.9]} 1-0

[Event "Early-Titled-Tuesday-Blitz-February-06-2024"]
[Site "Chess.com"]
[Date "2024.02.06"]
[Round "9"]
[White "KuzubovYuriy"]
[Black "AnishOnYoutube"]
[Result "0-1"]
[WhiteElo "2910"]
[BlackElo "3018"]
[TimeControl "180+1"]
[EndTime "9:44:14 PST"]
[Termination "AnishOnYoutube won on time"]

1. d4 {[%clk 0:03:00.9]} 1... Nf6 {[%clk 0:02:59.8]} 2. Nf3 {[%clk 0:03:01]}
2... g6 {[%clk 0:03:00.4]} 3. Nbd2 {[%clk 0:03:00.6]} 3... d5 {[%clk 0:03:00.6]}
4. e3 {[%clk 0:03:00.1]} 4... Bg7 {[%clk 0:03:00.4]} 5. b4 {[%clk 0:03:00.2]}
5... a5 {[%clk 0:02:58.1]} 6. b5 {[%clk 0:03:00.1]} 6... c5 {[%clk 0:02:58.8]}
7. c4 {[%clk 0:02:50.3]} 7... cxd4 {[%clk 0:02:51.8]} 8. exd4 {[%clk 0:02:49.9]}
8... dxc4 {[%clk 0:02:48.8]} 9. Bxc4 {[%clk 0:02:49.8]} 9... O-O {[%clk
0:02:48.7]} 10. Ba3 {[%clk 0:02:49.2]} 10... Nbd7 {[%clk 0:02:48]} 11. Qe2
{[%clk 0:02:48.9]} 11... Nh5 {[%clk 0:01:23.5]} 12. Bxe7 {[%clk 0:02:32.5]}
12... Nf4 {[%clk 0:01:23.8]} 13. Qe4 {[%clk 0:01:04.9]} 13... Nf6 {[%clk
0:01:23.7]} 14. Qe5 {[%clk 0:01:01.1]} 14... Ng4 {[%clk 0:00:37.9]} 15. Bxd8
{[%clk 0:00:15.8]} 15... Nxe5 {[%clk 0:00:36.9]} 16. dxe5 {[%clk 0:00:15.1]}
16... Rxd8 {[%clk 0:00:36.6]} 17. O-O {[%clk 0:00:12.3]} 17... Bf5 {[%clk
0:00:26.9]} 18. Rfe1 {[%clk 0:00:05.4]} 18... Rac8 {[%clk 0:00:26.9]} 19. g3
{[%clk 0:00:04.2]} 19... Nd3 {[%clk 0:00:26.8]} 20. Re2 {[%clk 0:00:02.8]} 20...
Nxe5 {[%clk 0:00:23.8]} 21. Nxe5 {[%clk 0:00:02.4]} 21... Bxe5 {[%clk
0:00:24.2]} 22. Rxe5 {[%clk 0:00:01.5]} 22... Rxd2 {[%clk 0:00:24.6]} 23. Bb3
{[%clk 0:00:01.2]} 23... Rc7 {[%clk 0:00:19.9]} 24. h4 {[%clk 0:00:01.1]} 24...
Kg7 {[%clk 0:00:19.5]} 25. Rae1 {[%clk 0:00:01.1]} 25... h5 {[%clk 0:00:18.8]}
26. b6 {[%clk 0:00:01.3]} 26... Rcd7 {[%clk 0:00:18.6]} 27. Rxa5 {[%clk
0:00:01]} 27... R2d6 {[%clk 0:00:17.8]} 28. Rb5 {[%clk 0:00:01.1]} 28... Bd3
{[%clk 0:00:16.5]} 29. Rb4 {[%clk 0:00:01.3]} 29... Bf5 {[%clk 0:00:15.9]} 0-1

[Event "Early-Titled-Tuesday-Blitz-February-06-2024"]
[Site "Chess.com"]
[Date "2024.02.06"]
[Round "9"]
[White "BestStelker"]
[Black "IriBu"]
[Result "0-1"]
[WhiteElo "2685"]
[BlackElo "2554"]
[TimeControl "180+1"]
[EndTime "9:44:15 PST"]
[Termination "IriBu won by resignation"]

1. c4 {[%clk 0:03:00.9]} 1... e5 {[%clk 0:02:58]} 2. Nc3 {[%clk 0:03:01]} 2...
Nf6 {[%clk 0:02:58.5]} 3. g3 {[%clk 0:03:01.7]} 3... Nc6 {[%clk 0:02:57.7]} 4.
Bg2 {[%clk 0:03:01.9]} 4... Bc5 {[%clk 0:02:54.9]} 5. e3 {[%clk 0:03:02.1]} 5...
O-O {[%clk 0:02:54.6]} 6. Nge2 {[%clk 0:03:02.8]} 6... d5 {[%clk 0:02:53.3]} 7.
cxd5 {[%clk 0:03:00.2]} 7... Nb4 {[%clk 0:02:53.3]} 8. O-O {[%clk 0:03:00.6]}
8... Nbxd5 {[%clk 0:02:52.4]} 9. d4 {[%clk 0:03:00.9]} 9... exd4 {[%clk
0:02:52]} 10. exd4 {[%clk 0:02:58.7]} 10... Bb6 {[%clk 0:02:50.8]} 11. Bg5
{[%clk 0:02:59.1]} 11... h6 {[%clk 0:02:34.7]} 12. Nxd5 {[%clk 0:02:57.1]} 12...
hxg5 {[%clk 0:02:34.6]} 13. Nxb6 {[%clk 0:02:57]} 13... axb6 {[%clk 0:02:34.2]}
14. Qd2 {[%clk 0:02:56.4]} 14... Nd5 {[%clk 0:02:29.2]} 15. Nc3 {[%clk
0:02:49.5]} 15... Be6 {[%clk 0:02:27.6]} 16. a3 {[%clk 0:02:46.7]} 16... f6
{[%clk 0:02:23.6]} 17. Rfe1 {[%clk 0:02:35.6]} 17... Bf7 {[%clk 0:02:23.8]} 18.
Nxd5 {[%clk 0:02:23.4]} 18... Bxd5 {[%clk 0:02:24.7]} 19. Bxd5+ {[%clk 0:02:24]}
19... Qxd5 {[%clk 0:02:24.8]} 20. Re7 {[%clk 0:02:24.9]} 20... Rf7 {[%clk
0:02:24.2]} 21. Rae1 {[%clk 0:02:22.8]} 21... Raf8 {[%clk 0:02:23.4]} 22. Qc3
{[%clk 0:02:15.4]} 22... c6 {[%clk 0:02:18.6]} 23. Qb4 {[%clk 0:02:14.9]} 23...
b5 {[%clk 0:02:16.3]} 24. Rxf7 {[%clk 0:02:13.3]} 24... Rxf7 {[%clk 0:02:16.8]}
25. Re8+ {[%clk 0:02:13.3]} 25... Kh7 {[%clk 0:02:17.3]} 26. Qc3 {[%clk
0:02:09.5]} 26... Qf5 {[%clk 0:02:08.7]} 27. Qe3 {[%clk 0:01:56.2]} 27... Rd7
{[%clk 0:02:04.8]} 28. Rb8 {[%clk 0:01:47.3]} 28... g4 {[%clk 0:02:00.4]} 29.
Re8 {[%clk 0:01:24]} 29... Qb1+ {[%clk 0:01:55.6]} 30. Kg2 {[%clk 0:01:23.8]}
30... Qf5 {[%clk 0:01:56]} 31. Kg1 {[%clk 0:01:13.1]} 31... c5 {[%clk 0:01:53]}
32. dxc5 {[%clk 0:00:55.2]} 32... Rd5 {[%clk 0:01:13.9]} 33. Qe4 {[%clk
0:00:48.9]} 33... Rxc5 {[%clk 0:01:11.1]} 34. Qxf5+ {[%clk 0:00:40.7]} 34...
Rxf5 {[%clk 0:01:12]} 35. Re7 {[%clk 0:00:36]} 35... Rf3 {[%clk 0:01:04.9]} 36.
Re3 {[%clk 0:00:18.5]} 36... Rxe3 {[%clk 0:01:01]} 37. fxe3 {[%clk 0:00:19.4]}
37... Kg6 {[%clk 0:01:01]} 38. e4 {[%clk 0:00:19.6]} 38... f5 {[%clk 0:00:50.7]}
39. Kf2 {[%clk 0:00:19.7]} 39... fxe4 {[%clk 0:00:50.2]} 40. Ke3 {[%clk
0:00:20.4]} 40... Kf5 {[%clk 0:00:50.6]} 41. Kd4 {[%clk 0:00:20.8]} 41... g6
{[%clk 0:00:44.6]} 42. b3 {[%clk 0:00:15.3]} 42... g5 {[%clk 0:00:44.9]} 43. b4
{[%clk 0:00:07.8]} 43... b6 {[%clk 0:00:44.9]} 0-1

[Event "Early-Titled-Tuesday-Blitz-February-06-2024"]
[Site "Chess.com"]
[Date "2024.02.06"]
[Round "9"]
[White "AttilaTurzo"]
[Black "Crazy_girl99"]
[Result "1-0"]
[WhiteElo "2469"]
[BlackElo "2594"]
[TimeControl "180+1"]
[EndTime "9:44:15 PST"]
[Termination "AttilaTurzo won by resignation"]

1. d4 {[%clk 0:03:00.9]} 1... Nf6 {[%clk 0:01:26.7]} 2. Bf4 {[%clk 0:03:00.2]}
2... e6 {[%clk 0:01:25.8]} 3. c3 {[%clk 0:02:59.3]} 3... d5 {[%clk 0:01:26.1]}
4. Nd2 {[%clk 0:02:59.7]} 4... Bd6 {[%clk 0:01:26]} 5. e3 {[%clk 0:03:00.1]}
5... O-O {[%clk 0:01:25.9]} 6. Ngf3 {[%clk 0:03:00.4]} 6... b6 {[%clk
0:01:26.2]} 7. Ne5 {[%clk 0:02:53.7]} 7... Bb7 {[%clk 0:01:26.2]} 8. Bd3 {[%clk
0:02:53.6]} 8... c5 {[%clk 0:01:26.2]} 9. Qf3 {[%clk 0:02:52.6]} 9... cxd4
{[%clk 0:01:17.4]} 10. exd4 {[%clk 0:02:49.9]} 10... Re8 {[%clk 0:01:05.2]} 11.
O-O {[%clk 0:02:44.9]} 11... Qe7 {[%clk 0:01:01.3]} 12. Qh3 {[%clk 0:02:41.7]}
12... Nbd7 {[%clk 0:00:56.7]} 13. Ndf3 {[%clk 0:02:32]} 13... Ne4 {[%clk
0:00:49]} 14. Bxe4 {[%clk 0:02:14]} 14... dxe4 {[%clk 0:00:49.9]} 15. Ng5 {[%clk
0:02:14.5]} 15... h6 {[%clk 0:00:42.6]} 16. Ngxf7 {[%clk 0:02:12]} 16... Nxe5
{[%clk 0:00:27]} 17. Nxd6 {[%clk 0:01:56.4]} 17... Nd3 {[%clk 0:00:15.5]} 18.
Be5 {[%clk 0:01:20.9]} 18... Nxe5 {[%clk 0:00:14.7]} 19. dxe5 {[%clk 0:01:21.8]}
19... Rf8 {[%clk 0:00:13.4]} 20. Nxb7 {[%clk 0:01:19.6]} 20... Qxb7 {[%clk
0:00:14.3]} 21. Qxe6+ {[%clk 0:01:19.8]} 21... Kh8 {[%clk 0:00:15]} 22. Rad1
{[%clk 0:01:14.8]} 22... Rae8 {[%clk 0:00:15.5]} 23. Qd5 {[%clk 0:01:14.7]}
23... Qa6 {[%clk 0:00:15.6]} 24. Qxe4 {[%clk 0:01:09.6]} 24... Qxa2 {[%clk
0:00:15.7]} 25. Rd2 {[%clk 0:01:08.1]} 25... Rf7 {[%clk 0:00:14.3]} 26. f4
{[%clk 0:01:08]} 26... Qe6 {[%clk 0:00:12.2]} 27. Re2 {[%clk 0:01:05.7]} 27...
Ref8 {[%clk 0:00:12.5]} 28. g3 {[%clk 0:01:01.4]} 28... g6 {[%clk 0:00:12.5]}
29. Rd1 {[%clk 0:01:00]} 29... Kg7 {[%clk 0:00:12.4]} 30. Rd6 {[%clk 0:00:59.9]}
30... Qf5 {[%clk 0:00:11.3]} 31. Qxf5 {[%clk 0:00:59.2]} 31... gxf5 {[%clk
0:00:12.2]} 32. Red2 {[%clk 0:00:56.8]} 32... Re8 {[%clk 0:00:10.5]} 33. Rd7
{[%clk 0:00:52.8]} 33... Ree7 {[%clk 0:00:10.8]} 34. Rxe7 {[%clk 0:00:47.8]}
34... Rxe7 {[%clk 0:00:11.7]} 35. Kf2 {[%clk 0:00:48.1]} 35... Kf7 {[%clk
0:00:09.8]} 36. Ke3 {[%clk 0:00:47.5]} 36... Kg6 {[%clk 0:00:09.1]} 37. Rd6+
{[%clk 0:00:46.4]} 37... Kh5 {[%clk 0:00:09.4]} 38. h3 {[%clk 0:00:43.1]} 38...
Rg7 {[%clk 0:00:08.9]} 39. Kf3 {[%clk 0:00:42.7]} 39... b5 {[%clk 0:00:05.1]}
40. g4+ {[%clk 0:00:40.5]} 40... fxg4+ {[%clk 0:00:05.5]} 41. hxg4+ {[%clk
0:00:41]} 41... Rxg4 {[%clk 0:00:06.2]} 42. Rxh6+ {[%clk 0:00:39.8]} 42... Kxh6
{[%clk 0:00:06.8]} 43. Kxg4 {[%clk 0:00:40.3]} 1-0

[Event "Early-Titled-Tuesday-Blitz-February-06-2024"]
[Site "Chess.com"]
[Date "2024.02.06"]
[Round "9"]
[White "DevikBronstein"]
[Black "carokannlover213"]
[Result "1-0"]
[WhiteElo "2910"]
[BlackElo "2766"]
[TimeControl "180+1"]
[EndTime "9:44:17 PST"]
[Termination "DevikBronstein won by resignation"]

1. Nf3 {[%clk 0:03:00.9]} 1... d5 {[%clk 0:03:00.4]} 2. g3 {[%clk 0:03:01]} 2...
Nf6 {[%clk 0:03:00.3]} 3. Bg2 {[%clk 0:03:00.2]} 3... e6 {[%clk 0:03:01.1]} 4.
c4 {[%clk 0:02:58.5]} 4... d4 {[%clk 0:03:00.7]} 5. d3 {[%clk 0:02:56.9]} 5...
c5 {[%clk 0:03:01.1]} 6. e4 {[%clk 0:02:56.8]} 6... Nc6 {[%clk 0:02:56.2]} 7. e5
{[%clk 0:02:56.2]} 7... Nd7 {[%clk 0:02:54.4]} 8. Bf4 {[%clk 0:02:54.7]} 8... h6
{[%clk 0:02:51.5]} 9. h4 {[%clk 0:02:54.7]} 9... Be7 {[%clk 0:02:48.1]} 10. Nbd2
{[%clk 0:02:54.2]} 10... a6 {[%clk 0:02:34.4]} 11. h5 {[%clk 0:02:41]} 11... Rb8
{[%clk 0:02:31.2]} 12. O-O {[%clk 0:02:28.6]} 12... b5 {[%clk 0:02:25.8]} 13.
Re1 {[%clk 0:02:27.3]} 13... Bb7 {[%clk 0:02:25.2]} 14. a3 {[%clk 0:02:20]}
14... Na5 {[%clk 0:01:59]} 15. b3 {[%clk 0:02:00]} 15... bxc4 {[%clk 0:01:57.8]}
16. bxc4 {[%clk 0:01:59.8]} 16... Bc6 {[%clk 0:01:54.7]} 17. Ne4 {[%clk
0:01:53.8]} 17... Qb6 {[%clk 0:01:22.7]} 18. Nfd2 {[%clk 0:01:49.1]} 18... Qb7
{[%clk 0:01:18]} 19. Qg4 {[%clk 0:01:46]} 19... Kf8 {[%clk 0:01:11.4]} 20. Rab1
{[%clk 0:01:41.6]} 20... Qa8 {[%clk 0:01:11.1]} 21. Rxb8+ {[%clk 0:01:41.5]}
21... Qxb8 {[%clk 0:01:00.7]} 22. Rb1 {[%clk 0:01:37.4]} 22... Qa8 {[%clk
0:01:00.8]} 23. Qe2 {[%clk 0:01:29.1]} 23... Ke8 {[%clk 0:00:40.6]} 24. Bh3
{[%clk 0:01:08.8]} 24... Nb7 {[%clk 0:00:37.8]} 25. g4 {[%clk 0:00:59]} 25...
Kd8 {[%clk 0:00:37.1]} 26. g5 {[%clk 0:00:56.6]} 26... hxg5 {[%clk 0:00:33.5]}
27. Nxg5 {[%clk 0:00:56.6]} 27... Kc7 {[%clk 0:00:32.8]} 28. Nxf7 {[%clk
0:00:48.5]} 28... Rf8 {[%clk 0:00:21.2]} 29. Bxe6 {[%clk 0:00:48.3]} 29... Nd8
{[%clk 0:00:20.8]} 30. Nxd8 {[%clk 0:00:47.9]} 30... Kxd8 {[%clk 0:00:20.8]} 31.
Bg3 {[%clk 0:00:45.8]} 31... Bh1 {[%clk 0:00:15.9]} 32. Bh3 {[%clk 0:00:40.7]}
32... Bc6 {[%clk 0:00:09]} 33. e6 {[%clk 0:00:38.1]} 33... Bf3 {[%clk 0:00:02]}
34. Nxf3 {[%clk 0:00:36]} 34... Qxf3 {[%clk 0:00:01.7]} 35. Qxf3 {[%clk
0:00:33.1]} 35... Rxf3 {[%clk 0:00:02.6]} 36. exd7 {[%clk 0:00:33.7]} 1-0